Workbook

Sheet List1
A1: PO | B1: OČ | C1: PŘ | D1: JM | E1: ZA | F1: PR | G1: BO | H1: CE | I1: 1 | J1: 2 | K1: 3 | L1: 4 | M1: 5 | N1: 6 | O1: 7 | P1: 8 | Q1: 9 | R1: 10 | S1: 11 | T1: 12 | U1: 13 | V1: 14 | W1: 15 | X1: 16 | Y1: 17 | Z1: 18 | AA1: 19 | AB1: 20 | AC1: 21 | AD1: 22 | AE1: 23 | AF1: 24 | AG1: 25 | AH1: 26 | AI1: 27 | AJ1: 28 | AK1: 29 | AL1: 30 | AM1: 31 | AN1: 32 | AO1: 33 | AP1: 34 | AQ1: 35 | AR1: 36 | AS1: 37 | AT1: 38 | AU1: 39 | AV1: 40
A2: 1 | B2: 164 | C2: Procházka | D2: Michal | E2: =COUNT(I2:AV2) -> 21 | F2: =G2/15 -> 542.7343236 | G2: =I2+J2+K2+L2+M2+N2+O2+P2+Q2+R2+S2+T2+U2+V2+W2+Y2+Z2+AA2+AD2+AE2+AF2+AG2+AI2+AJ2+AK2+AM2+AN2+AP2+AQ2+AR2+AS2+AT2+AU2+AV2 -> 8141.014854 | H2: =I2+J2+K2+L2+M2+N2+O2+P2+Q2+R2+S2+T2+U2+V2+W2+X2+Y2+Z2+AA2+AB2+AC2+AD2+AE2+AF2+AG2+AH2+AI2+AJ2+AK2+AL2+AM2+AN2+AO2+AP2+AQ2+AR2+AS2+AT2+AU2+AV2+AW2 -> 11303.31931 | I2: 531 | J2: 539.9925374 | K2: 552.4045741 | O2: 535.7133358 | Q2: 538.5393827 | S2: 543.7280992 | U2: 540.2181613 | W2: 535.5221955 | X2: 530.9112806 | AB2: 529.2596737 | AC2: 531.204376 | AF2: 538.0231317 | AG2: 540.4694309 | AH2: 528.6311191 | AI2: 544.1571386 | AK2: 543.008518 | AL2: 511.2980091 | AM2: 551.8113852 | AN2: 552.7584976 | AO2: 531 | AS2: 553.668466
A3: 2 | B3: 124 | C3: Jindra | D3: David | E3: 24 | F3: 528.1201385 | G3: =I3+J3+L3+N3+P3+Q3+R3+S3+T3+U3+V3+X3+Y3+Z3+AA3+AC3+AD3+AF3+AH3+AI3+AJ3+AK3+AL3+AN3+AP3+AQ3+AR3+AS3+AT3+AU3+AV3 -> 7921.802077 | H3: 12458.77016 | K3: 489.673978 | M3: 501.1750358 | N3: 524.9219753 | O3: 509.4925262 | P3: 525.6327276 | R3: 521.8159946 | T3: 529.6410026 | W3: 503.3420076 | Z3: 538.3707166 | AB3: 508.8398651 | AC3: 528.3116934 | AD3: 515.0881128 | AE3: 511.2122796 | AF3: 532.291982 | AG3: 513.2303213 | AI3: 521.4278065 | AJ3: 538.5970076 | AK3: 525.6371889 | AL3: 519.0147275 | AM3: 499.998798 | AO3: 500.0032681 | AR3: 531.7651644 | AS3: 544.4212238 | AU3: 524.8647534
A4: 3 | B4: 159 | C4: Etrych | D4: Tomáš | E4: 18 | F4: 510.2870139 | G4: =J4+K4+L4+M4+N4+O4+P4+Q4+R4+S4+T4+U4+V4+W4+X4+Y4+Z4+AA4+AB4+AD4+AE4+AF4+AG4+AI4+AJ4+AK4+AL4+AM4+AN4+AO4+AP4+AQ4+AR4+AS4+AT4+AU4+AV4 -> 7654.305209 | H4: 9137.02172 | I4: 496 | J4: 499.998304 | L4: 524.5542561 | M4: 504.5996144 | O4: 500.0026597 | Q4: 511.7996289 | R4: 508.5383117 | U4: 508.9013029 | V4: 519.04038 | X4: 511.2083501 | Y4: 502.908137 | AC4: 496.0133149 | AD4: 506.5085977 | AE4: 511.0075223 | AH4: 490.7031955 | AO4: 506 | AP4: 518 | AQ4: 521.2381444
A5: 4 | B5: 131 | C5: Novák | D5: Pavel | E5: 33 | F5: 508.299434 | G5: =I5+J5+K5+L5+M5+N5+P5+Q5+R5+S5+U5+AB5+AH5+AJ5+AM5+AN5+AP5+AQ5+AR5+AS5+AT5+AV5 -> 7624.491511 | H5: 16517.15866 | I5: 502 | J5: 514.2348332 | K5: 516.3080724 | L5: 508.9788583 | M5: 499.998352 | N5: 528.9644541 | O5: 482.0548965 | P5: 500.0008417 | Q5: 500.0033733 | R5: 500.0006646 | T5: 500.0008178 | V5: 500.0031671 | W5: 499.9985503 | X5: 500.0026763 | Y5: 496.8671947 | Z5: 499.7448823 | AA5: 499.6519566 | AC5: 492.0558292 | AD5: 483.0246716 | AE5: 499.9970956 | AF5: 475.7690653 | AG5: 500.0006028 | AH5: 501.3028821 | AI5: 496.657221 | AJ5: 505 | AK5: 490.6556714 | AL5: 500 | AN5: 505.0427616 | AO5: 486 | AP5: 512 | AR5: 512.5765306 | AU5: 490.1828521 | AV5: 518.0798869
A6: 5 | B6: 132 | C6: Nový | D6: Břetislav | E6: 32 | F6: 500.9208196 | G6: =I6+K6+N6+S6+U6+Y6+Z6+AA6+AB6+AC6+AD6+AF6+AH6+AI6+AJ6+AK6+AM6+AO6+AP6+AQ6+AS6+AT6+AV6 -> 7513.812294 | H6: 15637.40325 | I6: 500 | J6: 491.6097081 | K6: 500 | L6: 488.8589897 | M6: 446.7476392 | O6: 485.8556306 | P6: 483.4283021 | Q6: 487.8259403 | R6: 489.8838917 | T6: 493.1545161 | U6: 498.9894461 | V6: 487.5629454 | W6: 491.6350141 | X6: 476.456577 | Y6: 500.0012551 | Z6: 499.7530461 | AA6: 503.1948597 | AB6: 500 | AC6: 500.0019466 | AD6: 496.9689202 | AE6: 481.4730911 | AF6: 498.3638942 | AG6: 483.9273551 | AH6: 500.0009496 | AI6: 500 | AJ6: 521.4676145 | AL6: 489.9713467 | AM6: 495.0718785 | AN6: 373.4544241 | AR6: 478.3106576 | AT6: 499.9984833 | AU6: 493.4349247
A7: 6 | B7: 113 | C7: Diviš | D7: Martin | E7: 17 | F7: 499.9303948 | G7: =I7+J7+K7+L7+M7+N7+O7+P7+Q7+R7+S7+T7+U7+V7+X7+Y7+Z7+AA7+AB7+AC7+AD7+AE7+AF7+AG7+AH7+AI7+AJ7+AK7+AM7+AN7+AO7+AP7+AQ7+AR7+AS7+AT7+AU7+AV7 -> 7498.955921 | H7: 8466.692266 | N7: 500.0007594 | P7: 506.7527417 | S7: 500.0008168 | T7: 508.7157051 | U7: 500.0004483 | W7: 481.8217403 | Y7: 503.0305122 | Z7: 505.509521 | AD7: 499.9978639 | AF7: 499.9992035 | AJ7: 499.9993531 | AK7: 500.0011084 | AL7: 485.9146043 | AO7: 489 | AP7: 500 | AQ7: 491.3264668 | AV7: 494.621421
A8: 7 | B8: 122 | C8: Janeček | D8: Jaroslav | E8: 27 | F8: 499.5287438 | G8: =I8+J8+L8+N8+R8+T8+V8+X8+Z8+AA8+AB8+AC8+AD8+AE8+AG8+AH8+AI8+AJ8+AL8+AM8+AN8+AP8+AQ8+AR8+AS8+AT8+AU8+AV8 -> 7492.931157 | H8: 13209.89103 | K8: 484.113276 | L8: 498.8427124 | M8: 461.1727286 | O8: 481.0934092 | P8: 479.3369301 | Q8: 479.6171361 | S8: 479.4187557 | T8: 485.8437257 | U8: 472.2891242 | V8: 490.5209818 | W8: 477.2659399 | X8: 493.0576743 | Y8: 484.4351286 | Z8: 499.9979591 | AA8: 500 | AE8: 484.6330342 | AF8: 472.7724586 | AI8: 492.9528156 | AK8: 466.4449876 | AM8: 511.8022501 | AO8: 479 | AP8: 495 | AQ8: 511.9303204 | AR8: 490.9438776 | AT8: 516.2017867 | AU8: 512.1435737 | AV8: 509.0604454
A9: 8 | B9: 160 | C9: Kuriš | D9: Radek | E9: 17 | F9: 496.4376517 | G9: =K9+L9+M9+N9+O9+P9+Q9+R9+S9+T9+U9+V9+W9+X9+Y9+Z9+AA9+AB9+AC9+AD9+AE9+AF9+AG9+AH9+AI9+AJ9+AK9+AL9+AM9+AN9+AO9+AP9+AQ9+AR9+AS9+AT9+AU9+AV9 -> 7446.564775 | H9: 8381.770878 | I9: 467 | J9: 468.2061023 | K9: 486.9232608 | L9: 498.349689 | R9: 476.2386766 | S9: 502.5435566 | T9: 489.7043791 | V9: 506.9738717 | W9: 480.8605642 | X9: 483.641108 | AA9: 508.0540806 | AM9: 495.9000433 | AN9: 500 | AQ9: 499.9994565 | AR9: 500 | AT9: 522.753333 | AU9: 494.6227559
A10: 9 | B10: 153 | C10: Pěkný | D10: Jan | E10: 24 | F10: 486.9677915 | G10: =I10+J10+K10+L10+N10+O10+P10+Q10+R10+S10+T10+U10+V10+W10+X10+Z10+AA10+AB10+AC10+AF10+AG10+AH10+AI10+AJ10+AN10+AP10+AQ10+AR10+AS10+AT10+AU10 -> 7304.516873 | H10: 11501.7349 | J10: 484.3404963 | L10: 498.8492986 | M10: 471.3129748 | N10: 483.5673443 | P10: 496.2158386 | Q10: 483.9888683 | S10: 496.1577103 | U10: 477.9839136 | Y10: 472.301156 | AA10: 490.8326268 | AD10: 469.3752003 | AE10: 471.6171473 | AF10: 479.8282646 | AJ10: 478.9903681 | AK10: 464.5252465 | AL10: 459.8111555 | AM10: 471.9782201 | AO10: 448 | AQ10: 478.1531103 | AR10: 478.1228741 | AS10: 500.0009057 | AT10: 490.3125995 | AU10: 487.172654 | AV10: 468.2969247
A11: 10 | B11: 115 | C11: Doležal | D11: Jaromír | E11: 23 | F11: 485.1502505 | G11: =J11+L11+M11+O11+P11+Q11+S11+T11+U11+V11+Z11+AA11+AB11+AC11+AD11+AE11+AF11+AG11+AH11+AI11+AK11+AL11+AM11+AN11+AO11+AP11+AQ11+AR11+AS11+AT11+AU11+AV11 -> 7277.253757 | H11: 10974.15981 | I11: 456 | J11: 478.0482014 | K11: 469.8123356 | M11: 471.4151519 | N11: 460.779564 | O11: 481.1346348 | P11: 479.2199375 | R11: 460.6022743 | W11: 449.3708139 | X11: 461.6004282 | Y11: 467.7406399 | Z11: 493.7118599 | AC11: 473.2456055 | AD11: 481.8220656 | AE11: 481.754814 | AJ11: 471 | AK11: 487.2152116 | AM11: 484.1795279 | AN11: 495.7537668 | AQ11: 484.7351686 | AR11: 485.0198413 | AU11: 499.9993845 | AV11: 499.9985861
A12: 11 | B12: 165 | C12: Hejkrlík | D12: Filip | E12: 34 | F12: 484.3247239 | G12: =I12+J12+K12+L12+N12+P12+Q12+R12+S12+T12+U12+V12+Z12+AA12+AD12+AF12+AQ12+AR12+AS12+AT12+AU12 -> 7264.870859 | H12: 16019.80605 | K12: 476.651526 | L12: 485.6421065 | M12: 464.9302065 | O12: 474.1242885 | P12: 486.5479627 | Q12: 492.9583404 | R12: 480.2127433 | S12: 482.0689064 | U12: 486.1710141 | V12: 475.6136184 | W12: 464.6028444 | X12: 472.0828315 | Y12: 465 | Z12: 487.4431088 | AA12: 492.3251974 | AB12: 474.4318182 | AC12: 458.0113293 | AD12: 476.3964541 | AE12: 473.4396329 | AG12: 383.6232618 | AH12: 453 | AI12: 463.9547432 | AJ12: 462.6789399 | AK12: 462.7606808 | AL12: 471.6306397 | AM12: 444.0838502 | AN12: 466.0410696 | AO12: 454 | AP12: 471 | AR12: 480.5396117 | AS12: 481.4289855 | AT12: 493.5235322 | AU12: 487.3477514 | AV12: 475.5390597
A13: 12 | B13: 138 | C13: Pilný | D13: Luděk | E13: 29 | F13: 480.5664429 | G13: =I13+J13+P13+Q13+S13+V13+Y13+Z13+AA13+AB13+AC13+AD13+AE13+AF13+AG13+AH13+AI13+AM13+AN13+AP13+AQ13+AR13+AS13+AT13+AU13+AV13 -> 7208.496644 | H13: 13551.24529 | K13: 435.4370866 | L13: 462.5274033 | M13: 453.3495938 | N13: 443.2063422 | O13: 458.4578967 | P13: 473.0689919 | Q13: 479.5749705 | R13: 461.1419419 | S13: 465.7502022 | T13: 456.165515 | U13: 441.0005111 | W13: 442.0133956 | X13: 452.3645122 | Z13: 480.8682164 | AA13: 494.1078042 | AD13: 476.6186051 | AE13: 488.2402486 | AF13: 489.0315592 | AG13: 470.4230785 | AI13: 480.2761211 | AJ13: 457.4095517 | AK13: 453.2395631 | AL13: 461.4353371 | AM13: 481.7395067 | AN13: 479.8646362 | AO13: 465 | AR13: 478.6904762 | AT13: 486.7346165 | AU13: 483.5076101
A14: 13 | B14: 145 | C14: Rada | D14: Petr | E14: 31 | F14: 466.0355744 | G14: =I14+J14+O14+Q14+R14+S14+T14+U14+V14+W14+Z14+AA14+AD14+AE14+AF14+AH14+AJ14+AK14+AL14+AP14+AQ14+AR14+AS14+AU14 -> 6990.533615 | H14: 13604.16686 | I14: 483 | J14: 464.8878072 | K14: 330.1079767 | L14: 341.3382197 | M14: 433.2767514 | N14: 430.4623013 | O14: 459.8961381 | P14: 411.5035645 | Q14: 470 | R14: 452.8329224 | S14: 477.3142362 | T14: 458.6985321 | U14: 451.4622544 | V14: 460.8171021 | X14: 446.3274455 | Y14: 446.658843 | Z14: 474.0499418 | AA14: 479.3884699 | AB14: 450.8406312 | AC14: 430.3429951 | AD14: 462.6529958 | AE14: 480.3265952 | AF14: 457.8989502 | AG14: 399.0952545 | AI14: 430.6632838 | AJ14: 457.3076699 | AM14: 384.0629357 | AN14: 395.5362179 | AO14: 421 | AT14: 414.5087288 | AV14: 447.9080947
A15: 14 | B15: 142 | C15: Procházka | D15: Tomáš | E15: 30 | F15: 464.7546196 | G15: =I15+J15+L15+M15+P15+R15+S15+V15+W15+Z15+AA15+AB15+AD15+AE15+AG15+AH15+AJ15+AK15+AL15+AM15+AO15+AP15+AQ15+AS15+AT15 -> 6971.319294 | H15: 13553.75241 | I15: 466 | J15: 455.6147284 | K15: 450.3919635 | L15: 456.9216149 | M15: 456.545922 | N15: 436.313967 | O15: 451.9821533 | Q15: 427.4329567 | T15: 436.4599092 | U15: 441.5894031 | V15: 464.6278702 | X15: 434.9491503 | Y15: 447.0758601 | Z15: 463.8447252 | AA15: 473.2357994 | AB15: 458.4528781 | AC15: 393.6389208 | AF15: 434.8704019 | AI15: 447.5724077 | AK15: 459.9411996 | AL15: 467.1674807 | AM15: 460.7613347 | AN15: 437.8258918 | AO15: 462 | AP15: 479 | AR15: 454.9762613 | AS15: 474.7269368 | AT15: 472.4788036 | AU15: 447.7815868 | AV15: 439.572287
A16: 15 | B16: 128 | C16: Matějovský | D16: Pavel | E16: 19 | F16: 460.1286067 | G16: =I16+J16+K16+L16+N16+O16+P16+Q16+R16+S16+T16+U16+V16+W16+X16+Z16+AA16+AB16+AC16+AF16+AG16+AH16+AI16+AJ16+AK16+AL16+AM16+AN16+AO16+AP16+AQ16+AR16+AS16+AT16+AU16+AV16 -> 6901.9291 | H16: =I16+J16+K16+L16+M16+N16+O16+P16+Q16+R16+S16+U16+V16+W16+X16+Y16+Z16+AA16+AB16+AC16+AD16+AE16+AF16+AG16+AH16+AI16+AJ16+AK16+AL16+AM16+AN16+AO16+AP16+AQ16+AR16+AS16+AT16+AU16+AV16+AW16 -> 8649.756818 | K16: 458.5464977 | L16: 460.9015553 | M16: 423.612782 | N16: 445.8626005 | Y16: 432.9659985 | Z16: 453.1216197 | AA16: 459.207532 | AC16: 450.1995289 | AD16: 444.9214995 | AE16: 446.3274375 | AF16: 453.6808399 | AG16: 455.8904902 | AI16: 457.4813009 | AJ16: 449 | AK16: 456.7609357 | AM16: 469.5225732 | AN16: 471.8947477 | AR16: 469.0093537 | AT16: 490.8495245
A17: 16 | B17: 146 | C17: Rádl | D17: Pavel | E17: 24 | F17: 456.3947986 | G17: =K17+L17+N17+P17+R17+S17+T17+V17+W17+Y17+Z17+AA17+AB17+AC17+AD17+AF17+AG17+AH17+AI17+AJ17+AK17+AL17+AM17+AN17+AP17+AQ17+AR17+AS17+AT17+AU17+AV17 -> 6845.921979 | H17: =I17+J17+K17+L17+M17+N17+O17+P17+Q17+R17+S17+T17+U17+V17+W17+X17+Y17+Z17+AA17+AB17+AC17+AD17+AE17+AF17+AG17+AH17+AI17+AJ17+AK17+AL17+AM17+AN17+AO17+AP17+AQ17+AR17+AS17+AT17+AU17+AV17+AW17 -> 10743.41992 | I17: 394 | J17: 431.4275538 | L17: 456.3185081 | M17: 433.6475552 | O17: 441.1298473 | P17: 451.2073798 | Q17: 439.3169168 | S17: 465.7787906 | U17: 444.1092869 | V17: 451.3634204 | X17: 437.6448548 | Y17: 448.1235801 | Z17: 468.0286548 | AA17: 455.1581813 | AC17: 446.5573962 | AE17: 439.2219221 | AG17: 455.1912865 | AI17: 450.6713566 | AM17: 460.1663542 | AN17: 460.8837782 | AO17: 437 | AP17: 455 | AR17: 461.8098073 | AV17: 459.6634853
A18: 17 | B18: 150 | C18: Urban | D18: Josef | E18: 32 | F18: 453.1589497 | G18: =I18+J18+K18+L18+S18+T18+V18+Z18+AA18+AF18+AG18+AI18+AJ18+AK18+AN18+AO18+AP18+AQ18+AR18+AS18+AT18+AU18+AV18 -> 6797.384246 | H18: 13986.79849 | M18: 382.7617462 | N18: 421.744413 | O18: 389.9356349 | P18: 429.6066862 | Q18: 419.0268173 | R18: 417.9406233 | S18: 437.6101677 | T18: 439.5804882 | U18: 425.591582 | V18: 438.6634996 | W18: 433.7701876 | X18: 414.5711227 | Y18: 422.7065631 | Z18: 447.1590097 | AA18: 445.7643568 | AB18: 426.1059454 | AC18: 434.8484554 | AD18: 435.9532201 | AE18: 432.2340333 | AF18: 457.313887 | AG18: 441.6556663 | AH18: 435.8468259 | AI18: 437.7887245 | AJ18: 438 | AL18: 428.7757768 | AM18: 437.9946151 | AN18: 466.4226435 | AQ18: 472.1189227 | AR18: 455.55839 | AS18: 475.0253591 | AU18: 466.9161317 | AV18: 477.8069989
A19: 18 | B19: 112 | C19: Čižinský | D19: Jaromír | E19: 28 | F19: 451.1712032 | G19: =K19+L19+M19+N19+O19+P19+Q19+S19+V19+X19+Z19+AA19+AB19+AD19+AG19+AH19+AI19+AJ19+AK19+AL19+AM19+AQ19+AR19+AS19+AT19+AU19+AV19 -> 6767.568047 | H19: 12336.39818 | I19: 408 | J19: 435.1588338 | K19: 461.1761893 | L19: 459.3716775 | M19: 444.6249938 | P19: 459.3833904 | Q19: 445.6400742 | R19: 420.1976566 | S19: 447.2101742 | T19: 432.9672486 | U19: 429.7355702 | V19: 443.1543943 | W19: 437.6728812 | Y19: 417.4789452 | AA19: 452.2332783 | AC19: 423.0090907 | AD19: 442.1403396 | AE19: 433.5627777 | AF19: 424.9669433 | AJ19: 443.1085898 | AK19: 445.4187241 | AL19: 449.7142094 | AN19: 442.0801823 | AO19: 428 | AP19: 436 | AQ19: 452.0118488 | AR19: 459.5408163 | AU19: 462.8393474
A20: 19 | B20: 166 | C20: Bradáč | D20: Jiří | E20: 20 | F20: 449.6623928 | G20: =I20+J20+K20+L20+M20+N20+O20+P20+Q20+R20+S20+T20+U20+V20+W20+X20+Y20+Z20+AA20+AB20+AE20+AF20+AG20+AJ20+AK20+AL20+AM20+AN20+AP20+AQ20+AR20+AS20+AT20+AU20+AV20 -> 6744.935892 | H20: 8822.066506 | I20: 429 | J20: 451.3746375 | L20: 481.1258621 | M20: 437.1611266 | O20: 432.1173999 | Q20: 458.4246922 | S20: 463.414933 | T20: 430.5515803 | U20: 433.9508442 | AB20: 445.0651175 | AC20: 420.2468319 | AD20: 418.1085122 | AH20: 398.0461517 | AI20: 428.7291179 | AL20: 441.8360378 | AM20: 455.3223713 | AO20: 412 | AP20: 442 | AT20: 480.9156542 | AU20: 462.6756359
A21: 20 | B21: 101 | C21: Adam | D21: Petr | E21: 15 | F21: 441.5867025 | G21: =I21+J21+K21+L21+M21+N21+O21+P21+Q21+R21+S21+T21+U21+V21+W21+X21+Y21+Z21+AA21+AB21+AC21+AD21+AE21+AF21+AG21+AH21+AI21+AJ21+AK21+AL21+AM21+AN21+AO21+AP21+AQ21+AR21+AS21+AT21+AU21+AV21 -> 6623.800538 | H21: 6623.800538 | S21: 459.0776544 | V21: 459.5091053 | W21: 450.5835194 | AC21: 418.2700356 | AD21: 431.7910926 | AE21: 446.694839 | AG21: 432.2170184 | AI21: 437.3694356 | AL21: 424.4176552 | AN21: 414.9544759 | AO21: 425 | AQ21: 459.5863793 | AR21: 452.3859127 | AT21: 465.4259756 | AU21: 446.517439
A22: 21 | B22: 148 | C22: Skokan | D22: Miroslav | E22: 18 | F22: 433.0805819 | G22: =I22+J22+K22+L22+O22+P22+Q22+R22+S22+T22+U22+V22+W22+Y22+Z22+AA22+AB22+AC22+AD22+AE22+AF22+AG22+AH22+AI22+AJ22+AK22+AL22+AM22+AN22+AO22+AP22+AQ22+AR22+AS22+AT22+AU22+AV22 -> 6496.208729 | H22: 7639.394443 | M22: 377.0497207 | N22: 381.9529346 | X22: 384.183059 | Z22: 419.5562994 | AE22: 421.8872528 | AF22: 402.1124405 | AG22: 409.2331061 | AI22: 446.9340011 | AJ22: 439.1652813 | AK22: 438.8747568 | AL22: 423 | AM22: 421.2462138 | AN22: 410.5459443 | AO22: 431 | AR22: 458.7585034 | AT22: 467.6252446 | AU22: 456.4287517 | AV22: 449.8409332
A23: 22 | B23: 149 | C23: Šnajberk | D23: Jiří | E23: 27 | F23: 419.4479561 | G23: =J23+L23+N23+P23+Q23+S23+T23+V23+X23+Y23+AA23+AB23+AC23+AF23+AG23+AI23+AJ23+AL23+AM23+AN23+AO23+AP23+AQ23+AR23+AS23+AT23+AU23+AV23 -> 6291.719341 | H23: 10774.56578 | I23: 360 | J23: 409.189125 | K23: 396.613276 | L23: 418.2155189 | M23: 387.7783088 | N23: 404.9768773 | O23: 402.3059737 | P23: 418.735639 | Q23: 428.9020071 | R23: 287.3689877 | S23: 407.0523659 | T23: 411.0119802 | U23: 389.3053451 | W23: 378.7395981 | Z23: 396.7630671 | AA23: 419.831779 | AD23: 385.1244259 | AE23: 393.3170689 | AH23: 335.3174113 | AI23: 426.0964117 | AJ23: 418.8031645 | AK23: 370.2129782 | AL23: 437.6263788 | AO23: 414 | AP23: 427 | AQ23: 415.8860777 | AT23: 434.3920159
A24: 23 | B24: 126 | C24: Ledvinka | D24: Josef | E24: 15 | F24: 417.9046662 | G24: =I24+J24+K24+L24+M24+N24+O24+P24+Q24+R24+S24+T24+U24+V24+W24+X24+Y24+Z24+AA24+AB24+AC24+AD24+AE24+AF24+AG24+AH24+AI24+AJ24+AK24+AL24+AM24+AN24+AO24+AP24+AQ24+AR24+AS24+AT24+AU24+AV24 -> 6268.569994 | H24: 6268.569994 | M24: 357.542972 | N24: 388.7473517 | O24: 388.9754774 | U24: 397.1234633 | X24: 407.7171149 | Y24: 416.6304771 | AA24: 431.0550622 | AB24: 417.2450505 | AC24: 428.4771564 | AE24: 430.6671314 | AK24: 418.7144274 | AQ24: 444.3745414 | AR24: 438.3967545 | AT24: 453.4532314 | AU24: 449.4497818
A25: 24 | B25: 136 | C25: Paukert | D25: Milan | E25: 38 | F25: 416.2316492 | G25: =K25+L25+N25+P25+R25+S25+T25+V25+X25+Z25+AA25+AB25+AJ25+AS25+AT25+AU25+AV25 -> 6243.474738 | H25: 15046.97118 | I25: 364 | J25: 371.3997388 | K25: 405.0223125 | L25: 419.4998259 | M25: 392.2543219 | N25: 425.0005695 | O25: 397.0929305 | P25: 421.6932776 | Q25: 401.7945691 | R25: 415.3772024 | S25: 425.4404666 | T25: 414.761418 | U25: 393.8810828 | V25: 419.5597783 | W25: 397.6050335 | X25: 406.7375887 | Y25: 325.2682841 | Z25: 411.6639794 | AA25: 414.8029985 | AC25: 397.6874112 | AD25: 390.1858379 | AE25: 401.4391101 | AF25: 391.822657 | AG25: 357.7500105 | AH25: 316.8709938 | AI25: 388 | AJ25: 406.2694465 | AK25: 389.5517094 | AL25: 381.455528 | AM25: 395.3122746 | AN25: 382.4993957 | AO25: 375 | AP25: 390 | AQ25: 404.1334891 | AR25: 398.4920635 | AS25: 422.0660423 | AT25: 424.9108917 | AU25: 410.6689398
A26: 25 | B26: 144 | C26: Rabiňák | D26: Martin | E26: 13 | F26: =G26/E26 -> 468.7488743 | G26: =I26+J26+K26+L26+M26+N26+O26+P26+Q26+R26+S26+T26+U26+V26+W26+X26+Y26+Z26+AA26+AB26+AC26+AD26+AE26+AF26+AG26+AH26+AI26+AJ26+AK26+AL26+AM26+AN26+AO26+AP26+AQ26+AR26+AS26+AT26+AU26+AV26 -> 6093.735366 | H26: 6093.735366 | I26: 466 | J26: 477.5783993 | L26: 500.0023522 | N26: 487.5900797 | T26: 477.6853253 | U26: 464.8133121 | X26: 466.5127793 | Y26: 412.245993 | AA26: 475.8154478 | AG26: 456.1053748 | AK26: 467.3743772 | AN26: 482.0119249 | AP26: 460
A27: 26 | B27: 155 | C27: Rock | D27: Jan | E27: 22 | F27: =G27/15 -> 392.0080026 | G27: =J27+K27+L27+M27+N27+O27+P27+Q27+R27+T27+U27+V27+X27+Y27+AA27+AB27+AC27+AE27+AF27+AG27+AH27+AJ27+AK27+AM27+AN27+AO27+AP27+AQ27+AR27+AS27+AT27+AU27+AV27 -> 5880.120039 | H27: 8266.981968 | I27: 360 | J27: 407.8068554 | K27: 413.4532632 | L27: 392.2527591 | M27: 382.6892335 | O27: 393.1897973 | P27: 393.8086541 | Q27: 378.7788835 | R27: 392.4366788 | S27: 276.6179029 | T27: 386.089872 | U27: 379.6127256 | W27: 356.911624 | Z27: 370.3716554 | AA27: 414.6602115 | AC27: 383.4848455 | AD27: 296.7595856 | AE27: 376.5531062 | AF27: 394.8535152 | AI27: 372.5757027 | AJ27: 390.4496381 | AL27: 353.6254584
A28: 27 | B28: 106 | C28: Březina | D28: Petr | E28: 34 | F28: =G28/15 -> 378.735144 | G28: =I28+K28+L28+N28+P28+Q28+X28+Z28+AA28+AB28+AE28+AH28+AI28+AJ28+AL28+AN28+AO28+AP28+AR28+AS28+AT28 -> 5681.02716 | H28: 12262.43562 | I28: 373 | J28: 347.7078069 | K28: 381.9009483 | L28: 387.5925595 | M28: 360.4245291 | N28: 378 | O28: 357.6573222 | P28: 376.9693042 | Q28: 380.7589813 | R28: 333.605604 | S28: 354.0362828 | T28: 322.7484974 | U28: 341.1049739 | V28: 350.6334125 | W28: 338.4593639 | X28: 361.5910612 | Y28: 336.1496366 | Z28: 375.322979 | AA28: 381.7634197 | AC28: 340 | AD28: 354.4077753 | AE28: 361.4184892 | AF28: 350.8825732 | AG28: 335.250116 | AK28: 327.6893832 | AL28: 400.7772021 | AM28: 359.0172604 | AP28: 372 | AQ28: 355.8148762 | AR28: 365.4095805 | AS28: 385.0603184 | AT28: 399.4623167 | AU28: 360.7720287 | AV28: 355.0470131
A29: 28 | B29: 143 | C29: Pucholt | D29: Miroslav | E29: 31 | F29: =G29/15 -> 378.384648 | G29: =N29+O29+P29+Q29+S29+X29+Z29+AA29+AB29+AC29+AD29+AE29+AH29+AI29+AJ29+AN29+AO29+AP29+AQ29+AR29+AS29+AT29+AU29+AV29 -> 5675.769719 | H29: 11166.87113 | I29: 313 | J29: 350.8115534 | K29: 361.7977528 | L29: 366.3934966 | M29: 327.0554887 | N29: 368.4271276 | O29: 372.4666206 | P29: 388.2653963 | Q29: 376.6098836 | R29: 358.2688103 | S29: 387.5991407 | T29: 363.2121683 | U29: 251.5265909 | V29: 361.722882 | W29: 346.4234973 | X29: 372.0754717 | Y29: 345.6704279 | Z29: 384.1663775 | AA29: 390.1387711 | AD29: 375.9436078 | AE29: 374.2615666 | AF29: 343.1935129 | AG29: 352.0406503 | AJ29: 384.1607856 | AK29: 340.0657279 | AL29: 356.6518699 | AM29: 353.266984 | AN29: 368.5509398 | AO29: 378 | AT29: 387.2199724 | AV29: 367.884058
A30: 29 | B30: 140 | C30: Pokorný | D30: Jan | E30: 18 | F30: =G30/15 -> 372.8111488 | G30: =K30+J30+L30+M30+N30+O30+P30+Q30+R30+S30+T30+U30+V30+W30+X30+Y30+AA30+AB30+AC30+AD30+AE30+AF30+AG30+AH30+AI30+AJ30+AK30+AL30+AN30+AO30+AP30+AQ30+AR30+AS30+AT30+AU30+AV30 -> 5592.167232 | H30: 6603.397407 | I30: 323 | J30: 360.9877716 | K30: 362.2380269 | M30: 361.6836138 | P30: 379.0962116 | Q30: 367.2727273 | S30: 381.1855228 | Z30: 355.3319591 | AA30: 363.6718576 | AD30: 370.381288 | AE30: 392.137899 | AI30: 372.251145 | AJ30: 365.4895822 | AL30: 376.7477768 | AM30: 332.8982163 | AO30: 373 | AP30: 384 | AR30: 382.0238095
A31: 30 | B31: 114 | C31: Dolejš | D31: Radomír | E31: 36 | F31: =G31/15 -> 370.7672891 | G31: =I31+L31+O31+Q31+S31+AE31+AF31+AI31+AJ31+AK31+AL31+AM31+AN31+AO31+AP31+AR31+AS31+AT31+AU31 -> 5561.509337 | H31: 11969.9318 | I31: 382 | J31: 345.9676735 | K31: 272.0470755 | L31: 354.6743129 | M31: 299.1834078 | N31: 162.4585197 | O31: 350.8198574 | P31: 331.9511661 | Q31: 380.6012818 | R31: 340.8093684 | S31: 366.6977056 | T31: 293.1381609 | U31: 315.0336702 | V31: 170.0625495 | W31: 307.4012729 | X31: 319.9866185 | Y31: 294.7526138 | Z31: 334.2709758 | AA31: 349.72837 | AB31: 280.6823815 | AC31: 327.2644099 | AD31: 333.3461497 | AE31: 355.7680579 | AF31: 372.3244014 | AG31: 335.9224969 | AH31: 329 | AL31: 369.2711968 | AM31: 376.9093466 | AN31: 379.3293967 | AO31: 372 | AP31: 372 | AQ31: 342.3501916 | AR31: 360.5608702 | AS31: 384.55291 | AT31: 384 | AV31: 323.0653941
A32: 31 | B32: 163 | C32: Horák | D32: Karel | E32: 13 | F32: =G32/E32 -> 408.1667824 | G32: =I32+J32+K32+L32+M32+N32+O32+P32+Q32+R32+S32+T32+U32+V32+W32+X32+Y32+Z32+AA32+AB32+AC32+AD32+AE32+AF32+AG32+AH32+AI32+AJ32+AK32+AL32+AM32+AN32+AO32+AP32+AQ32+AR32+AS32+AT32+AU32+AV32 -> 5306.168171 | H32: 5306.168171 | I32: 344 | J32: 406.2634623 | L32: 427.6441199 | M32: 399.9439674 | R32: 408.0797272 | T32: 417.2817598 | U32: 410.669548 | W32: 405.2842935 | X32: 418.3273117 | Y32: 415.4086077 | Z32: 425.4709472 | AA32: 420.2668333 | AC32: 407.5275934
A33: 32 | B33: 147 | C33: Rožánek | D33: Vladimír | E33: 25 | F33: =G33/15 -> 348.5970247 | G33: =K33+L33+M33+N33+O33+P33+Q33+R33+S33+T33+V33+W33+X33+Y33+Z33+AA33+AB33+AD33+AE33+AF33+AG33+AH33+AJ33+AK33+AM33+AP33+AQ33+AS33+AT33+AU33 -> 5228.95537 | H33: 8182.968263 | I33: 300 | J33: 303.0121606 | K33: 340.8140091 | L33: 353.5212593 | M33: 340.2495097 | N33: 343.9258404 | O33: 352.4495984 | Q33: 361.9986507 | R33: 337.2799293 | T33: 347.2551826 | U33: 240.1269245 | V33: 351.8337292 | Y33: 337.5647961 | Z33: 359.2827112 | AA33: 379.8040025 | AC33: 310.5652995 | AF33: 331.9761514 | AI33: 327.6689512 | AJ33: 346 | AL33: 328.3344715 | AN33: 321.0239764 | AO33: 214 | AP33: 345 | AR33: 307.0089286 | AV33: 302.272181
A34: 33 | B34: 109 | C34: Cimbulka | D34: Václav | E34: =COUNT(I34:AV34) -> 15 | F34: 332.4680999 | G34: =I34+J34+K34+L34+M34+N34+O34+P34+Q34+R34+S34+T34+U34+V34+W34+X34+Y34+Z34+AA34+AB34+AC34+AD34+AE34+AF34+AG34+AH34+AI34+AJ34+AK34+AL34+AM34+AN34+AO34+AP34+AQ34+AR34+AS34+AT34+AU34+AV34 -> 4987.021499 | H34: 4987.021499 | I34: 268 | J34: 329.8095351 | M34: 344.5524811 | W34: 358.9586535 | X34: 355.2509033 | Z34: 373.356532 | AC34: 353.2635144 | AD34: 343.4636335 | AE34: 358.1118759 | AF34: 338.0151662 | AI34: 311.1758213 | AL34: 251.3161216 | AN34: 371.5010877 | AO34: 357 | AR34: 273.2461735
A35: 34 | B35: 161 | C35: Holan | D35: Martin | E35: 19 | F35: 331.1351769 | G35: =I35+J35+L35+M35+N35+P35+Q35+R35+T35+U35+V35+W35+X35+Y35+Z35+AA35+AB35+AC35+AD35+AE35+AF35+AG35+AH35+AI35+AJ35+AK35+AL35+AM35+AN35+AO35+AP35+AQ35+AR35+AS35+AT35+AV35 -> 4967.027654 | H35: 6128.902272 | K35: 295.0623556 | M35: 317.9798612 | N35: 351.0240035 | O35: 280.5667855 | Q35: 358.0974869 | R35: 303.29051 | S35: 289.203362 | AC35: 325.1182574 | AD35: 324.6374025 | AE35: 323.8273649 | AI35: 312.9913671 | AK35: 346.9449848 | AL35: 338.0955209 | AM35: 331.5291601 | AN35: 316.2390506 | AP35: 333 | AQ35: 346.2526836 | AT35: 338 | AU35: 297.0421157
A36: 35 | B36: 103 | C36: Běhal | D36: Jaromír | E36: 19 | F36: 326.0645674 | G36: =I36+J36+K36+L36+M36+N36+O36+P36+Q36+R36+T36+U36+V36+W36+X36+Y36+AA36+AB36+AD36+AE36+AF36+AG36+AH36+AI36+AJ36+AK36+AL36+AM36+AO36+AP36+AQ36+AR36+AS36+AT36+AU36+AV36 -> 4890.968511 | H36: 6075.960416 | K36: 317.1378197 | L36: 325.0971463 | M36: 332.4840554 | O36: 313.9674983 | Q36: 331.4589307 | S36: 305.2872324 | Z36: 307.7953752 | AA36: 310.1679979 | AC36: 303.2421016 | AD36: 316.7873545 | AE36: 322.1617147 | AI36: 320.7980494 | AJ36: 334 | AN36: 268.6671962 | AO36: 333 | AP36: 342 | AR36: 351.0083617 | AT36: 317.2149672 | AU36: 323.6846154
A37: 36 | B37: 139 | C37: Plzák | D37: Jiří | E37: 15 | F37: 291.854649 | G37: =I37+J37+K37+L37+M37+N37+O37+P37+Q37+R37+S37+T37+U37+V37+W37+X37+Y37+Z37+AA37+AB37+AC37+AD37+AE37+AF37+AG37+AH37+AI37+AJ37+AK37+AL37+AM37+AN37+AO37+AP37+AQ37+AR37+AS37+AT37+AU37+AV37 -> 4377.819734 | H37: 4377.819734 | I37: 273 | J37: 345.3401401 | K37: 300.2061917 | L37: 346.5464844 | M37: 328.2156924 | N37: 293.7261275 | O37: 214.7082292 | P37: 327.6203382 | Q37: 334.8456738 | X37: 250.9086043 | Y37: 230.1438379 | AA37: 240.441078 | AD37: 276.5043255 | AE37: 304.1488775 | AI37: 311.4641339
A38: 37 | B38: 157 | C38: Procházka | D38: Jiří st. | E38: 22 | F38: 270.7714014 | G38: =I38+J38+K38+L38+M38+N38+O38+P38+Q38+R38+S38+T38+U38+V38+W38+X38+Y38+Z38+AA38+AB38+AC38+AD38+AE38+AF38+AG38+AH38+AI38+AJ38+AK38+AQ38+AR38+AS38+AT38 -> 4061.571022 | H38: 5319.233135 | I38: 272 | K38: 260.0047813 | L38: 238.0531223 | N38: 286.7194678 | P38: 296.7317841 | Q38: 294.6938776 | R38: 258.8636409 | S38: 277.0712343 | T38: 253.2395633 | V38: 261.3016627 | W38: 254.2491809 | X38: 259.7189884 | Y38: 271.1031341 | AA38: 286.5780197 | AB38: 291.2425644 | AL38: 125.774604 | AM38: 180.3548248 | AN38: 151.7248524 | AO38: 202 | AP38: 232 | AU38: 219.1185431 | AV38: 146.6892895
A39: 38 | B39: 135 | C39: Pachmann | D39: Ota | E39: 25 | F39: 255.901099 | G39: =J39+K39+L39+N39+O39+P39+Q39+R39+S39+T39+U39+V39+Y39+Z39+AA39+AB39+AC39+AD39+AE39+AG39+AH39+AI39+AJ39+AL39+AN39+AQ39+AR39+AS39+AT39+AV39 -> 3838.516486 | H39: 5957.274032 | I39: 181 | K39: 239.182405 | L39: 271.8967285 | M39: 192.2988184 | N39: 272.9612952 | O39: 240 | S39: 274.6003741 | T39: 244.1714029 | V39: 272.7078385 | W39: 224.8832961 | X39: 221.3368125 | Z39: 248.5968529 | AA39: 239 | AC39: 245 | AD39: 235.0421873 | AE39: 257.1447242 | AF39: 229.6243488 | AK39: 221.54333 | AM39: 172.5263234 | AO39: 233 | AP39: 232 | AQ39: 284.2432807 | AR39: 251.9947562 | AT39: 261.9746402 | AU39: 210.5446175
A40: 39 | B40: 102 | C40: Adámek | D40: Petr | E40: 12 | F40: =G40/E40 -> 308.3479822 | G40: =I40+J40+K40+L40+M40+N40+O40+P40+Q40+R40+S40+T40+U40+V40+W40+X40+Y40+Z40+AA40+AB40+AC40+AD40+AE40+AF40+AG40+AH40+AI40+AJ40+AK40+AL40+AM40+AN40+AO40+AP40+AQ40+AR40+AS40+AT40+AU40+AV40 -> 3700.175786 | H40: 3700.175786 | I40: 267 | J40: 316.9552755 | K40: 326.6007252 | L40: 358.4072712 | M40: 322.7624054 | Y40: 280.0609993 | Z40: 304.136988 | AA40: 313.4688323 | AE40: 329.4255177 | AI40: 283.3577713 | AO40: 286 | AP40: 312
A41: 40 | B41: 141 | C41: Procházka | D41: Jiří ml. | E41: 31 | F41: =G41/15 -> 212.7412728 | G41: =I41+J41+L41+M41+N41+O41+P41+Q41+S41+V41+Y41+Z41+AA41+AC41+AD41+AE41+AF41+AO41+AP41+AR41+AS41+AT41+AU41+AV41 -> 3191.119092 | H41: 5515.989335 | I41: 211 | J41: 190.1426367 | K41: 139.8717029 | L41: 184.7238034 | O41: 206.0747912 | P41: 193.2565167 | Q41: 224.9957834 | R41: 151.2863628 | S41: 186.8623751 | T41: 181.8293331 | U41: 4.689615595 | W41: 177.6363478 | X41: 175.0301084 | AB41: 125.3830439 | AC41: 215.9973526 | AE41: 237.6056461 | AG41: 130.2146435 | AH41: 120.1747305 | AI41: 152.7727437 | AJ41: 172.0087198 | AK41: 136.2827739 | AL41: 178.2591267 | AM41: 167.6282514 | AN41: 129.8042059 | AO41: 227 | AP41: 244 | AQ41: 181.9985325 | AS41: 203.6788813 | AT41: 245.4232455 | AU41: 214.9851367 | AV41: 205.3729233
A42: 41 | B42: 158 | C42: Březina | D42: Tomáš | E42: 20 | F42: =G42/15 -> 211.5265902 | G42: =I42+J42+K42+L42+M42+N42+O42+P42+Q42+R42+S42+T42+V42+W42+X42+Z42+AA42+AB42+AC42+AD42+AE42+AF42+AG42+AH42+AI42+AJ42+AM42+AN42+AO42+AP42+AQ42+AS42+AT42+AU42+AV42 -> 3172.898853 | H42: =I42+J42+K42+L42+M42+N42+O42+P42+Q42+R42+S42+U42+V42+W42+X42+Y42+Z42+AA42+AB42+AC42+AD42+AE42+AF42+AG42+AH42+AI42+AJ42+AK42+AL42+AM42+AN42+AO42+AP42+AQ42+AR42+AS42+AT42+AU42+AV42+AW42 -> 3927.238691 | I42: 212 | J42: 202.7407948 | K42: 234.7477887 | L42: 242.0946906 | M42: 201.4659108 | P42: 190.252586 | Q42: 261.8940799 | S42: 202.707736 | U42: 154.2430709 | X42: 184.9638699 | Y42: 168.3838942 | Z42: 201.2546687 | AA42: 234.9582794 | AK42: 126.8445087 | AL42: 135.1348041 | AN42: 175.2604257 | AO42: 180 | AR42: 169.7335601 | AS42: 210.0852247 | AT42: 238.4727973
A43: 42 | B43: 129 | C43: Miřejovský | D43: Tomáš | E43: 12 | F43: =G43/E43 -> 227.4172991 | G43: =I43+J43+K43+L43+M43+N43+O43+P43+Q43+R43+S43+T43+U43+V43+W43+X43+Y43+Z43+AA43+AB43+AC43+AD43+AE43+AF43+AG43+AH43+AI43+AJ43+AK43+AL43+AM43+AN43+AO43+AP43+AQ43+AR43+AS43+AT43+AU43+AV43 -> 2729.00759 | H43: =I43+J43+K43+L43+M43+N43+O43+P43+Q43+R43+S43+T43+U43+V43+W43+X43+Y43+Z43+AA43+AB43+AC43+AD43+AE43+AF43+AG43+AH43+AI43+AJ43+AK43+AL43+AM43+AN43+AO43+AP43+AQ43+AR43+AS43+AT43+AU43+AV43+AW43 -> 2729.00759 | P43: 218.4966038 | V43: 198.3024545 | X43: 231.7944601 | Y43: 247.8656508 | AA43: 277.9260185 | AC43: 188.1801016 | AE43: 221.3063809 | AF43: 216.9887368 | AJ43: 224.1928702 | AK43: 259.2548257 | AU43: 229.3498932 | AV43: 215.3495935
A44: 43 | B44: 110 | C44: Černý | D44: Václav | E44: 17 | F44: =G44/15 -> 176.092886 | G44: =I44+J44+K44+L44+N44+O44+P44+Q44+R44+S44+T44+U44+V44+W44+X44+Y44+Z44+AA44+AB44+AC44+AD44+AE44+AF44+AG44+AH44+AI44+AJ44+AK44+AL44+AM44+AN44+AP44+AQ44+AR44+AS44+AT44+AU44+AV44 -> 2641.393289 | H44: 2865.44629 | L44: 187.1061223 | M44: 96.05300021 | N44: 169.4340454 | O44: 179.3180488 | Q44: 251 | S44: 198.4594901 | T44: 160.0114487 | U44: 148.850013 | X44: 183.9796601 | Y44: 162.5004707 | Z44: 146.1048636 | AC44: 159.4849234 | AD44: 155.3049236 | AE44: 149.2288926 | AI44: 225.4308214 | AL44: 165.1795656 | AO44: 128
A45: 44 | B45: 108 | C45: Cedrych | D45: Karel | E45: 8 | F45: =G45/E45 -> 287.86092 | G45: =I45+J45+K45+L45+M45+N45+O45+P45+Q45+R45+S45+T45+U45+V45+W45+X45+Y45+Z45+AA45+AB45+AC45+AD45+AE45+AF45+AG45+AH45+AI45+AJ45+AK45+AL45+AM45+AN45+AO45+AP45+AQ45+AR45+AS45+AT45+AU45+AV45 -> 2302.88736 | H45: 2302.88736 | I45: 220 | M45: 261.8929119 | O45: 281.1585723 | Q45: 334.7680891 | V45: 318.3657957 | X45: 313.2396628 | AA45: 345.7721655 | AE45: 227.6901629
A46: 45 | B46: 133 | C46: Ovčinikov | D46: Milan | E46: 5 | F46: 379.9421046 | G46: 1899.710523 | H46: 1899.710523 | I46: 399 | J46: 380.2089517 | M46: 366.5749271 | O46: 393.6392893 | S46: 360.2873549
A47: 46 | B47: 162 | C47: Kalát | D47: Josef | E47: =COUNT(I47:AV47) -> 3 | F47: =G47/E47 -> 458.6666667 | G47: =I47+J47+K47+L47+M47+N47+O47+P47+Q47+R47+S47+T47+U47+V47+W47+X47+Y47+Z47+AA47+AB47+AC47+AD47+AE47+AF47+AG47+AH47+AI47+AJ47+AK47+AL47+AM47+AN47+AO47+AP47+AQ47+AR47+AS47+AT47+AU47+AV47 -> 1376 | H47: =I47+J47+K47+L47+M47+N47+O47+P47+Q47+R47+S47+T47+U47+V47+W47+X47+Y47+Z47+AA47+AB47+AC47+AD47+AE47+AF47+AG47+AH47+AI47+AJ47+AK47+AL47+AM47+AN47+AO47+AP47+AQ47+AR47+AS47+AT47+AU47+AV47+AW47 -> 1376 | AF47: 469 | AH47: 450 | AK47: 457
A48: 47 | B48: 120 | C48: Hampl | D48: Stanislav | E48: 5 | F48: 207.2462967 | G48: 1036.231483 | H48: 1036.231483 | K48: 261.0466969 | L48: 161.2741454 | M48: 227.4609008 | AE48: 115.4497401 | AP48: 271
A49: 48 | B49: 119 | C49: Frabša | D49: Michal | E49: 1 | F49: 462.3539593 | G49: 462.3539593 | H49: 462.3539593 | AM49: 462.3539593
A50: 49 | B50: 105 | C50: Benda | D50: Tomáš | E50: 1 | F50: 364.0900253 | G50: 364.0900253 | H50: 364.0900253 | P50: 364.0900253
A51: 50 | B51: 130 | C51: Novák | D51: Miloš | E51: 2 | F51: 71.40677006 | G51: 142.8135401 | H51: 142.8135401 | I51: 123 | AE51: 19.81354012
A52: 1 | B52: 218 | C52: Hrstková | D52: Vlaďka | E52: 34 | F52: =G52/15 -> 528.811482 | G52: =J52+K52+L52+M52+P52+Q52+R52+T52+Z52+AA52+AB52+AE52+AF52+AH52+AL52+AP52+AQ52+AR52+AS52+AU52+AV52 -> 7932.17223 | H52: 17499.60535 | I52: 500 | J52: 545.8777482 | K52: 581.2426567 | L52: 519.9470766 | M52: 525.7788979 | N52: 501.0306167 | O52: 500.0054864 | P52: 515.4915788 | Q52: 516.1339811 | R52: 515.4748854 | S52: 500.0031084 | T52: 541.257559 | U52: 499.9972828 | V52: 506.1086038 | W52: 503.3807496 | X52: 509.2511855 | Y52: 500.0023458 | Z52: 519.9246272 | AA52: 518.3250896 | AB52: 514.8989617 | AC52: 499.9964709 | AD52: 499.9980766 | AE52: 529.7438708 | AG52: 499.9977412 | AH52: 518.6015176 | AI52: 510.7857421 | AJ52: 505.6278553 | AK52: 508.8956093 | AM52: 500 | AN52: 514.9909522 | AO52: 500 | AS52: 522.491679 | AT52: 507.3612889 | AU52: 546.9821001
A53: 2 | B53: 203 | C53: Chlupatá | D53: Jana | E53: 33 | F53: 514.2561653 | G53: =I53+J53+K53+L53+M53+N53+O53+P53+S53+U53+Y53+AC53+AD53+AG53+AL53+AM53+AO53+AP53+AQ53+AR53+AU53+AV53 -> 7713.84248 | H53: 16693.275 | I53: 515 | N53: 499.9969821 | O53: 515.4770396 | Q53: 500.0015041 | R53: 499.9975085 | S53: 506.766964 | T53: 479.4394954 | U53: 509.3282974 | V53: 499.9985627 | W53: 500 | X53: 500.0011945 | Y53: 502.7105961 | Z53: 500 | AA53: 500.0010013 | AB53: 499.9972089 | AC53: 500.8258046 | AD53: 515.2661037 | AE53: 499.9975085 | AF53: 499.9986595 | AG53: 503.32603 | AH53: 499.9996025 | AI53: 500.0007213 | AJ53: 499.9975306 | AK53: 500.0020229 | AL53: 538.3456274 | AM53: 502.9072333 | AN53: 500 | AO53: 507 | AP53: 540.0627929 | AQ53: 544.8369366 | AR53: 511.992072 | AS53: 500 | AT53: 500
A54: 3 | B54: 201 | C54: Borovičková | D54: Lenka | E54: 29 | F54: 493.2677844 | G54: =I54+J54+K54+L54+M54+N54+O54+P54+Q54+T54+U54+V54+W54+X54+AC54+AE54+AF54+AG54+AI54+AL54+AO54+AP54+AQ54+AR54+AU54+AV54 -> 7399.016765 | H54: 13946.28475 | M54: 499.9986377 | O54: 476.5540133 | P54: 500.0015297 | Q54: 486.4229097 | R54: 476.2351754 | S54: 450.8548071 | T54: 500.0007225 | W54: 479.5636241 | X54: 476.5345979 | Y54: 468.849844 | Z54: 473.4961858 | AA54: 475.7339247 | AB54: 471.2306018 | AC54: 488.4996118 | AD54: 474.9341232 | AE54: 478.5099412 | AF54: 508.6199732 | AG54: 478.7659243 | AH54: 474.7075564 | AJ54: 469.041857 | AK54: 465.7875573 | AL54: 500.0006574 | AM54: 440.4304029 | AN54: 472.3374947 | AQ54: 499.5060462 | AR54: 500.0006098 | AS54: 462.196548 | AT54: 471.4319054 | AV54: 526.0379664
A55: 4 | B55: 213 | C55: Flieglová | D55: Alena | E55: 27 | F55: 483.3695477 | G55: =J55+K55+L55+M55+P55+Q55+R55+U55+W55+AA55+AB55+AC55+AD55+AE55+AF55+AG55+AH55+AI55+AJ55+AL55+AM55+AN55+AP55+AQ55+AR55+AS55+AU55+AV55 -> 7250.543215 | H55: 12736.1894 | I55: 455 | J55: 500.0020819 | L55: 499.9968498 | M55: 474.1509434 | N55: 455.1621373 | O55: 455.1791299 | P55: 477.5343807 | S55: 453.0345653 | T55: 461.1537378 | U55: 466.5405413 | V55: 464.3063501 | X55: 457.5407016 | Y55: 454.6617326 | Z55: 462.9144137 | AC55: 469.1876059 | AD55: 471.744148 | AE55: 473.5854345 | AF55: 480.625 | AJ55: 471 | AK55: 450.7292478 | AL55: 488.0892272 | AO55: 464 | AP55: 499.9981256 | AQ55: 499.9992671 | AR55: 478.7720689 | AT55: 451.9641647 | AV55: 499.3175406
A56: 5 | B56: 215 | C56: Dolejšová | D56: Jitka | E56: 40 | F56: 467.7577564 | G56: =J56+K56+L56+M56+U56+AB56+AC56+AF56+AJ56+AL56+AP56+AQ56+AR56+AU56+AV56 -> 7016.366345 | H56: 17813.80456 | I56: 429 | J56: 448.6800466 | K56: 500 | L56: 460.7768397 | M56: 456.6405558 | N56: 434.6056344 | O56: 438.3332419 | P56: 446.8671123 | Q56: 429.6674538 | R56: 421.5006478 | S56: 425.2921886 | T56: 441.4201183 | U56: 449.2079235 | V56: 423.1896973 | W56: 412.9923932 | X56: 413.5256035 | Y56: 415.4665838 | Z56: 436.0027855 | AA56: 433.7670465 | AB56: 451.3788099 | AC56: 451.5625 | AD56: 443.1411206 | AE56: 443.9468308 | AF56: 469.1869973 | AG56: 413.110431 | AH56: 444 | AI56: 438.5272565 | AJ56: 452 | AK56: 433.8098899 | AL56: 466.4056645 | AM56: 416.7168675 | AN56: 449.2319501 | AO56: 435 | AP56: 468.0721649 | AQ56: 480.2096006 | AR56: 462.3244397 | AS56: 442.491846 | AT56: 435.831514 | AU56: 499.9213739 | AV56: 499.9994289
A57: 6 | B57: 205 | C57: Norková | D57: Zdena | E57: 35 | F57: 445.2676545 | G57: =I57+J57+K57+L57+M57+P57+T57+Z57+AB57+AE57+AF57+AH57+AL57+AO57+AP57+AQ57+AR57+AS57+AU57+AV57 -> 6679.014817 | H57: 14673.97472 | K57: 487.7492877 | L57: 446.0244456 | M57: 434.4404332 | N57: 394.2720043 | O57: 406.6686783 | P57: 436.4427651 | Q57: 409.0739543 | R57: 407.0248655 | S57: 408.4019769 | T57: 424.2451828 | U57: 418.831857 | V57: 392.6337425 | W57: 389.0557038 | X57: 403.0781543 | Y57: 398.6230031 | Z57: 425.8743423 | AA57: 417.538098 | AC57: 421.9491107 | AD57: 424.1368698 | AE57: 426.4363664 | AF57: 450 | AG57: 353.062884 | AH57: 445.5357391 | AI57: 414.2499603 | AJ57: 385.2549697 | AK57: 398.8590964 | AL57: 449.2538098 | AM57: 383.9589126 | AN57: 396.1622918 | AO57: 425.0973369 | AR57: 443.8676628 | AS57: 434.6368598 | AT57: 372.1237672 | AU57: 485.4581465 | AV57: 463.9524391
A58: 7 | B58: 217 | C58: Kasalová | D58: Barbora | E58: 19 | F58: 432.1727034 | G58: =I58+J58+K58+L58+M58+N58+O58+P58+Q58+R58+T58+V58+Y58+Z58+AA58+AB58+AC58+AD58+AE58+AF58+AG58+AH58+AI58+AJ58+AK58+AL58+AM58+AN58+AO58+AP58+AQ58+AR58+AS58+AT58+AU58+AV58 -> 6482.590551 | H58: 8055.99809 | I58: 427 | K58: 492.2189969 | M58: 416.1330972 | N58: 406.8106713 | O58: 409.3240797 | P58: 435.2426917 | S58: 398.0020826 | U58: 395.8548448 | W58: 390.0303111 | X58: 389.5203001 | AC58: 406.0559006 | AD58: 420.8132177 | AE58: 436.2760365 | AL58: 445.6826161 | AM58: 410.6232623 | AP58: 458.3762887 | AQ58: 470.9600586 | AR58: 425.9338314 | AT58: 421.1398028
A59: 8 | B59: 207 | C59: Pucholtová | D59: Zdeňka | E59: 24 | F59: 396.1758458 | G59: =I59+J59+K59+L59+M59+N59+O59+P59+Q59+R59+T59+W59+Y59+AA59+AB59+AC59+AD59+AF59+AH59+AI59+AJ59+AL59+AM59+AN59+AP59+AQ59+AR59+AS59+AT59+AU59+AV59 -> 5942.637688 | H59: 9037.765683 | I59: 385 | J59: 421.1234177 | L59: 441.6771673 | M59: 393.0604182 | N59: 384.1559657 | O59: 383.3475064 | P59: 407.390892 | Q59: 395.327658 | R59: 368 | S59: 361.9020236 | U59: 364.8782675 | V59: 356.1344755 | X59: 312.4571483 | Z59: 359.8366923 | AA59: 374.8282836 | AB59: 386.1881768 | AD59: 380.762055 | AE59: 341.6758023 | AG59: 330.6412631 | AK59: 321.6023223 | AL59: 400.830342 | AO59: 346 | AQ59: 405.9648223 | AV59: 414.9809825
A60: 9 | B60: 206 | C60: Preislerová | D60: Jiřina | E60: 15 | F60: 379.3681927 | G60: =I60+J60+K60+L60+M60+N60+O60+P60+Q60+R60+S60+T60+U60+V60+W60+X60+Y60+Z60+AA60+AB60+AC60+AD60+AE60+AF60+AG60+AH60+AI60+AJ60+AK60+AL60+AM60+AN60+AO60+AP60+AQ60+AR60+AS60+AT60+AU60+AV60 -> 5690.52289 | H60: 5690.52289 | I60: 295 | M60: 374.5916491 | N60: 339.2071947 | P60: 372.574995 | R60: 359.792954 | S60: 315.0819061 | U60: 391.8401174 | X60: 383.6655956 | Z60: 407.4207585 | AB60: 404.3625098 | AC60: 406.073546 | AG60: 385.5077701 | AL60: 427.849 | AN60: 403.8285586 | AP60: 423.7263355
A61: 10 | B61: 216 | C61: Zeidlerová | D61: Jarmila | E61: 24 | F61: 368.9837859 | G61: =I61+J61+K61+L61+M61+O61+P61+Q61+U61+W61+X61+Z61+AA61+AB61+AC61+AD61+AE61+AF61+AH61+AI61+AJ61+AL61+AM61+AN61+AO61+AP61+AQ61+AR61+AS61+AU61+AV61 -> 5534.756788 | H61: 8464.134475 | K61: 449.7853649 | L61: 369.8966734 | M61: 365.5200599 | N61: 330.8158923 | O61: 362.1961925 | P61: 378.5547108 | R61: 328.8568866 | S61: 339.6848093 | T61: 312.7786086 | U61: 350.8708766 | V61: 341.6003105 | Y61: 334.713458 | Z61: 363.7236696 | AA61: 347.6530428 | AE61: 391.1513355 | AF61: 367.8552279 | AG61: 307.8751807 | AI61: 358.9609509 | AJ61: 346 | AK61: 325.5165927 | AL61: 377.5327732 | AO61: 350 | AT61: 307.5359482 | AV61: 355.0559103
A62: 11 | B62: 220 | C62: Trnková | D62: Štěpánka | E62: 10 | F62: =G62/E62 -> 435.5210731 | G62: =I62+J62+K62+L62+M62+N62+O62+P62+Q62+R62+S62+T62+U62+V62+W62+X62+Y62+Z62+AA62+AB62+AC62+AD62+AE62+AF62+AG62+AH62+AI62+AJ62+AK62+AL62+AM62+AN62+AO62+AP62+AQ62+AR62+AS62+AT62+AU62+AV62 -> 4355.210731 | H62: 4355.210731 | Y62: 412.6293134 | AA62: 412.2003725 | AC62: 432.1137422 | AD62: 431.0322941 | AG62: 398.3381144 | AJ62: 426.2044697 | AO62: 439 | AQ62: 470.0652254 | AT62: 433.6279455 | AU62: 499.9992535
A63: 12 | B63: 214 | C63: Požgayová | D63: Jana | E63: 23 | F63: =G63/15 -> 235.4272934 | G63: =I63+J63+K63+L63+M63+O63+P63+Q63+S63+T63+U63+V63+W63+Y63+Z63+AA63+AB63+AC63+AD63+AE63+AF63+AG63+AH63+AJ63+AN63+AP63+AQ63+AR63+AS63+AT63+AU63+AV63 -> 3531.409401 | H63: 4801.50122 | K63: 326.3797698 | L63: 259.8412298 | M63: 242.1905865 | N63: 164.1351421 | O63: 218.8840731 | P63: 231.7709688 | R63: 137.8924158 | S63: 234.599484 | T63: 200.7022563 | X63: 167.8125635 | Y63: 191.0471745 | Z63: 197.9490961 | AE63: 229.4822603 | AF63: 270.2339142 | AI63: 172.3165472 | AK63: 167.4599723 | AL63: 178.0429437 | AM63: 109.4322344 | AO63: 173 | AP63: 242.0515464 | AQ63: 234.2587028 | AR63: 240.3854246 | AT63: 211.6329143
A64: 13 | B64: 289 | C64: Pucholtová | D64: Barbora | E64: 2 | F64: =G64/E64 -> 347.9580432 | G64: =I64+J64+K64+L64+M64+N64+O64+P64+Q64+R64+S64+T64+U64+V64+W64+X64+Y64+Z64+AA64+AB64+AC64+AD64+AE64+AF64+AG64+AH64+AI64+AJ64+AK64+AL64+AM64+AN64+AO64+AP64+AQ64+AR64+AS64+AT64+AU64+AV64 -> 695.9160865 | H64: 695.9160865 | AQ64: 380.9160865 | AT64: 315
A65: 14 | B65: 202 | C65: Člupková | D65: Alice | E65: 2 | F65: =G65/E65 -> 210.8800743 | G65: =I65+J65+K65+L65+M65+N65+O65+P65+Q65+R65+S65+T65+U65+V65+W65+X65+Y65+Z65+AA65+AB65+AC65+AD65+AE65+AF65+AG65+AH65+AI65+AJ65+AK65+AL65+AM65+AN65+AO65+AP65+AQ65+AR65+AS65+AT65+AU65+AV65 -> 421.7601486 | H65: 421.7601486 | M65: 219.9986377 | AE65: 201.7615109
